fUSD/lending_fUSD_20260512
["ID","MTS","AMOUNT","RATE_DAILY","PERIOD"]
[422064749,1778542247000,-500.0,0.00039999,45]
[422064725,1778542247000,-357.52947459,0.0003999,7]
[422064745,1778542247000,-1191.11104075,0.00039999,43]
[422064694,1778542247000,-2349.74,0.000399,60]
[422064690,1778542247000,-2349.742,0.000399,60]
[422064698,1778542247000,-244.24832756,0.000399,2]
[422064696,1778542247000,-1500.0,0.000399,14]
[422064702,1778542247000,-560.87191123,0.00039909,2]
[422064700,1778542247000,-4974.04684702,0.000399,2]
[422064692,1778542247000,-2349.742,0.000399,60]
[422064704,1778542247000,-5800.0,0.00039919,14]
[422064706,1778542247000,-5800.0,0.00039928,14]
[422064717,1778542247000,-400.0,0.0003997,2]
[422064719,1778542247000,-400.0,0.0003997,2]
[422064747,1778542247000,-151.0,0.00039999,43]
[422064721,1778542247000,-5800.0,0.0003997,14]
[422064710,1778542247000,-5800.0,0.00039945,14]
[422064714,1778542247000,-5800.0,0.00039962,14]
[422064727,1778542247000,-3023.08268076,0.00039999,2]
[422064712,1778542247000,-5800.0,0.00039953,14]
[422064708,1778542247000,-5800.0,0.00039936,14]
[422064734,1778542247000,-151.0,0.00039999,30]
[422064729,1778542247000,-500.0,0.00039999,30]
[422064731,1778542247000,-1107.63007,0.00039999,30]
[422064736,1778542247000,-537.6845,0.00039999,30]
[422064744,1778542247000,-500.0,0.00039999,43]
[422064743,1778542247000,-557.5788265,0.00039999,41]
[422064723,1778542247000,-501.56870608,0.0003998,2]
[422064783,1778542247000,-182.81273,0.00039999,30]
[422064790,1778542247000,-162.380719,0.00039999,30]
[422064785,1778542247000,-189.57680101,0.00039999,41]
[422064818,1778542247000,-161.0,0.0004,120]
[422064820,1778542247000,-336.82,0.0004,120]
[422064825,1778542247000,-500.0,0.0004,120]
[422064826,1778542247000,-500.0,0.0004,120]
[422064828,1778542247000,-500.0,0.0004,120]
[422064827,1778542247000,-500.0,0.0004,120]
[422064829,1778542247000,-500.0,0.0004,120]
[422064823,1778542247000,-2037.66538873,0.0004,120]
[422064822,1778542247000,-917.55,0.0004,30]
[422064824,1778542247000,-354.284951,0.0004,3]
[422064821,1778542247000,-4884.48,0.0004,14]
[422064815,1778542247000,-10111.78230676,0.0004,120]
[422064830,1778542247000,-500.0,0.0004,120]
[422064834,1778542247000,-500.0,0.0004,120]
[422064832,1778542247000,-500.0,0.0004,120]
[422064833,1778542247000,-500.0,0.0004,120]
[422064835,1778542247000,-500.0,0.0004,120]
[422064836,1778542247000,-500.0,0.0004,120]
[422064838,1778542247000,-17260.94,0.0004,120]
[422064837,1778542247000,-206.82116762,0.0004,120]
[422064839,1778542247000,-1119.0,0.0004,30]
[422064840,1778542247000,-560.87191123,0.00040003,2]
[422064841,1778542247000,-1000.0,0.00040023,120]
[422064784,1778542247000,-151.0,0.00039999,45]
[422064831,1778542247000,-500.0,0.0004,120]
[422064813,1778542247000,-245.77104992,0.0004,120]
[422064819,1778542247000,-152.0,0.0004,120]
[422064812,1778542247000,-3000.0,0.0004,7]
[422064787,1778542247000,-203.86501493,0.00039999,45]
[422064806,1778542247000,-348.13696481,0.0004,120]
[422064789,1778542247000,-1613.0535,0.00039999,30]
[422064796,1778542247000,-5081.549999,0.0004,120]
[422064793,1778542247000,-1562.0,0.0004,30]
[422064795,1778542247000,-435.74100092,0.0004,7]
[422064798,1778542247000,-1011.60003444,0.0004,7]
[422064797,1778542247000,-241.36821009,0.0004,120]
[422064794,1778542247000,-553.94458486,0.0004,120]
[422064805,1778542247000,-90892.43156997,0.0004,50]
[422064804,1778542247000,-18611.10805875,0.0004,120]
[422064800,1778542247000,-668.31,0.0004,120]
[422064782,1778542247000,-151.0,0.00039999,43]
[422064803,1778542247000,-194.77197129,0.0004,120]
[422064802,1778542247000,-398.61251282,0.0004,120]
[422064808,1778542247000,-6578.11053214,0.0004,120]
[422064810,1778542247000,-2438.79704164,0.0004,120]
[422064811,1778542247000,-363.15938531,0.0004,15]
[422064809,1778542247000,-116845.1804362,0.0004,120]
[422064814,1778542247000,-201.09926868,0.0004,120]
[422064816,1778542247000,-74582.45924625,0.0004,30]
[422064807,1778542247000,-334.20272563,0.0004,120]
[422064801,1778542247000,-731.52074262,0.0004,120]
[422064799,1778542247000,-322204.34613043,0.0004,30]
[422064817,1778542247000,-482.0,0.0004,120]
[422064861,1778542248000,-150.15099589,0.000401,30]
[422064860,1778542248000,-6002.1426864,0.00040096,12]
[422064853,1778542248000,-6002.1426864,0.00040096,12]
[422064858,1778542248000,-6002.1426864,0.00040096,12]
[422064863,1778542248000,-501.56870608,0.0004014,2]
[422064862,1778542248000,-152.0,0.0004012,5]
[422064855,1778542248000,-6002.1426864,0.00040096,12]
[422064854,1778542248000,-6002.1426864,0.00040096,12]
[422064859,1778542248000,-6002.1426864,0.00040096,12]
[422064856,1778542248000,-6002.1426864,0.00040096,12]
[422064851,1778542248000,-767.26218527,0.00040096,30]
[422064849,1778542248000,-5027.253533,0.00040096,20]
[422064847,1778542248000,-5027.253533,0.00040096,20]
[422064846,1778542248000,-151.0,0.00040096,7]
[422064850,1778542248000,-5027.253533,0.00040096,20]
[422064845,1778542248000,-151.0,0.00040096,7]
[422064844,1778542248000,-3989.14,0.00040039,120]
[422064848,1778542248000,-5027.253533,0.00040096,20]
[422064843,1778542248000,-500.0,0.0004003,30]
[422064842,1778542248000,-500.0,0.0004003,30]
[422064857,1778542248000,-6002.1426864,0.00040096,12]
[422064852,1778542248000,-6002.14268645,0.00040096,12]
[422064865,1778542248000,-209.40437684,0.00040147,2]
[422064882,1778542248000,-3517.45951613,0.00040366,10]
[422064866,1778542248000,-160.96,0.000402,11]
[422064889,1778542248000,-160.08826997,0.000405,120]
[422064888,1778542248000,-4974.046847,0.00040459,2]
[422064886,1778542248000,-12221.22536231,0.00040458,2]
[422064887,1778542248000,-244.24832755,0.00040459,2]
[422064864,1778542248000,-560.87191123,0.00040145,2]
[422064879,1778542248000,-397.36,0.00040317,120]
[422064883,1778542248000,-501.56870608,0.00040377,2]
[422064884,1778542248000,-300.0,0.000404,14]
[422064880,1778542248000,-237.29424365,0.00040343,120]
[422064881,1778542248000,-3989.14,0.00040364,120]
[422064874,1778542248000,-917.55,0.000403,30]
[422064885,1778542248000,-560.87191123,0.00040458,2]
[422064876,1778542248000,-151.0,0.000403,30]
[422064878,1778542248000,-151.0,0.000403,30]
[422064868,1778542248000,-1562.0,0.00040274,30]
[422064873,1778542248000,-4884.48,0.000403,14]
[422064872,1778542248000,-451716.74225943,0.000403,120]
[422064871,1778542248000,-378.12,0.0004029,60]
[422064870,1778542248000,-673.72,0.0004029,60]
[422064869,1778542248000,-506.0,0.00040284,18]
[422064875,1778542248000,-151.0,0.000403,30]
[422064877,1778542248000,-151.0,0.000403,30]
[422064867,1778542248000,-2264.4335,0.00040269,2]
[422064981,1778542249000,-156.0,0.00026315,2]
[422064992,1778542249000,-300.0,0.00036992,2]
[422064983,1778542249000,-156.0,0.00026389,30]
[422064980,1778542249000,-156.0,0.00026277,30]
[422064974,1778542249000,-163.8,0.00024802,7]
[422064979,1778542249000,-156.0,0.0002624,7]
[422064973,1778542249000,-163.8,0.00024658,2]
[422064977,1778542249000,-156.0,0.00026166,30]
[422064976,1778542249000,-156.0,0.00026129,7]
[422064975,1778542249000,-156.0,0.00026092,2]
[422064951,1778542249000,-1930.51497952,0.00040774,2]
[422064952,1778542249000,-1322.44364032,0.00040774,2]
[422064982,1778542249000,-156.0,0.00026352,7]
[422064978,1778542249000,-156.0,0.00026203,2]
[422064985,1778542249000,-156.0,0.00026463,7]
[422064987,1778542249000,-156.0,0.00026538,2]
[422064984,1778542249000,-156.0,0.00026426,2]
[422064988,1778542249000,-3540.0,0.00026656,2]
[422065001,1778542249000,-427.46515504,0.00037031,10]
[422065000,1778542249000,-1859.9129737,0.0004,120]
[422064997,1778542249000,-427.21,0.0004,120]
[422064998,1778542249000,-7745.4399998,0.0004,120]
[422064996,1778542249000,-711.75,0.0004,120]
[422064999,1778542249000,-163.8,0.00024946,30]
[422064994,1778542249000,-300.0,0.00036992,2]
[422064993,1778542249000,-300.0,0.00036992,2]
[422064990,1778542249000,-3540.0,0.00032656,2]
[422064991,1778542249000,-300.0,0.00036992,2]
[422064989,1778542249000,-3540.0,0.00029656,2]
[422064986,1778542249000,-156.0,0.000265,30]
[422064995,1778542249000,-300.0,0.00036992,2]
[422065004,1778542250000,-163.8,0.00025378,30]
[422065002,1778542250000,-163.8,0.0002509,2]
[422065006,1778542250000,-152.2,0.00025523,2]
[422065003,1778542250000,-163.8,0.00025234,7]
[422065008,1778542250000,-163.8,0.00025811,30]
[422065005,1778542250000,-11.6,0.00025523,2]
[422065007,1778542250000,-163.8,0.00025667,7]
[422065010,1778542250000,-135.49390502,0.00026099,7]
[422065009,1778542250000,-163.8,0.00025955,2]
[422065011,1778542329000,3465.25,0.00027397,120]
[422065012,1778543149000,154.0,7.17e-05,2]
[422065013,1778543151000,154.0,8.17e-05,2]
[422065026,1778543431000,-250.0,0.00014,2]
[422065025,1778543431000,-182.0,0.00013268,2]
[422065021,1778543431000,-539.35,0.00012,2]
[422065024,1778543431000,-84.58914938,0.0001296,2]
[422065020,1778543431000,-418.72,0.00012,2]
[422065022,1778543431000,-163.33,0.00012,2]
[422065023,1778543431000,-65.41085062,0.0001296,2]
[422065019,1778543431000,-163.3434,9.261e-05,2]
[422065018,1778543431000,-162.29383545,9.17e-05,2]
[422065028,1778543431000,-270.00142481,0.00014897,2]
[422065027,1778543431000,-182.0,0.00014268,2]
[422065029,1778543431000,-12.82525003,0.00014998,2]
[422065030,1778543431000,-287.17474997,0.00014998,2]
[422065038,1778543431000,-152.94,0.00016059,2]
[422065039,1778543431000,-182.0,0.00016268,2]
[422065036,1778543431000,-182.0,0.00015268,2]
[422065037,1778543431000,-300.0,0.00016,2]
[422065035,1778543431000,-152.94,0.00015092,2]
[422065034,1778543431000,-500.0,0.00014999,2]
[422065032,1778543431000,-500.0,0.00014999,2]
[422065031,1778543431000,-1200.0,0.00014998,2]
[422065033,1778543431000,-500.0,0.00014999,2]
[422065040,1778543431000,-437.5,0.00016438,2]
[422065088,1778543432000,-902.0,0.00022,2]
[422065086,1778543432000,-360.0,0.00022,2]
[422065093,1778543432000,-331.45,0.00022469,2]
[422065085,1778543432000,-160.0,0.00022,2]
[422065084,1778543432000,-152.0,0.00022,2]
[422065080,1778543432000,-182.0,0.00021,2]
[422065082,1778543432000,-152.94,0.00021859,2]
[422065094,1778543432000,-500.0,0.00022709,2]
[422065081,1778543432000,-172.96,0.0002145,2]
[422065089,1778543432000,-309.0,0.00022,2]
[422065076,1778543432000,-160.0,0.00021,2]
[422065075,1778543432000,-152.0,0.00021,2]
[422065083,1778543432000,-150.0,0.00021999,2]
[422065091,1778543432000,-437.5,0.00022353,2]
[422065096,1778543432000,-152.94,0.00022826,2]
[422065090,1778543432000,-182.0,0.00022,2]
[422065095,1778543432000,-150.0,0.00022747,2]
[422065097,1778543432000,-152.0,0.00023,2]
[422065104,1778543432000,-217.17776526,0.000235,2]
[422065102,1778543432000,-182.0,0.00023,2]
[422065098,1778543432000,-160.0,0.00023,2]
[422065101,1778543432000,-309.0,0.00023,2]
[422065103,1778543432000,-217.17776526,0.000233,2]
[422065099,1778543432000,-360.0,0.00023,2]
[422065100,1778543432000,-902.0,0.00023,2]
[422065106,1778543432000,-152.94,0.00023793,2]
[422065042,1778543432000,-518.87,0.000165,2]
[422065079,1778543432000,-309.0,0.00021,2]
[422065092,1778543432000,-164.25,0.00022469,2]
[422065073,1778543432000,-152.94,0.00020893,2]
[422065045,1778543432000,-151.0,0.000165,2]
[422065071,1778543432000,-437.5,0.00020381,2]
[422065041,1778543432000,-1200.0,0.00016498,2]
[422065043,1778543432000,-151.0,0.000165,2]
[422065049,1778543432000,-151.0,0.000165,2]
[422065046,1778543432000,-151.0,0.000165,2]
[422065047,1778543432000,-151.0,0.000165,2]
[422065050,1778543432000,-152.94,0.00017026,2]
[422065048,1778543432000,-151.0,0.000165,2]
[422065044,1778543432000,-151.0,0.000165,2]
[422065051,1778543432000,-182.0,0.00017268,2]
[422065052,1778543432000,-152.94,0.00017993,2]
[422065054,1778543432000,-189.0,0.00018268,2]
[422065053,1778543432000,-350.0,0.00018,2]
[422065058,1778543432000,-160.0,0.00019,2]
[422065069,1778543432000,-182.0,0.0002,2]
[422065056,1778543432000,-152.94,0.00018959,2]
[422065057,1778543432000,-172.96,0.00018975,2]
[422065063,1778543432000,-152.0,0.0002,2]
[422065059,1778543432000,-182.0,0.00019,2]
[422065060,1778543432000,-152.0,0.00019302,2]
[422065061,1778543432000,-164.2,0.00019908,2]
[422065062,1778543432000,-152.94,0.00019926,2]
[422065065,1778543432000,-360.0,0.0002,2]
[422065064,1778543432000,-160.0,0.0002,2]
[422065067,1778543432000,-168.0,0.0002,2]
[422065077,1778543432000,-360.0,0.00021,2]
[422065078,1778543432000,-902.0,0.00021,2]
[422065068,1778543432000,-309.0,0.0002,2]
[422065066,1778543432000,-902.0,0.0002,2]
[422065055,1778543432000,-437.5,0.0001841,2]
[422065105,1778543432000,-217.17776526,0.000237,2]
[422065107,1778543432000,-217.17776526,0.00024,2]
[422065108,1778543432000,-155.0,0.00024,2]
[422065146,1778543432000,-152.0,0.00025684,2]
[422065144,1778543432000,-853.64,0.00025646,2]
[422065145,1778543432000,-289.23,0.00025667,7]
[422065147,1778543432000,-152.94,0.00025726,2]
[422065149,1778543432000,-315.45,0.00025786,2]
[422065150,1778543432000,-404.23,0.00025786,2]
[422065151,1778543432000,-289.23,0.00025811,2]
[422065152,1778543432000,-166.66,0.00025817,30]
[422065154,1778543432000,-150.0,0.00026046,2]
[422065155,1778543432000,-289.23,0.00026099,7]
[422065153,1778543432000,-289.23,0.00025955,2]
[422065148,1778543432000,-152.0,0.00025728,30]
[422065156,1778543432000,-152.0,0.00026099,7]
[422065143,1778543432000,-289.23,0.00025523,2]
[422065158,1778543432000,-289.23,0.00026243,7]
[422065161,1778543432000,-166.66,0.00026338,30]
[422065164,1778543432000,-289.23,0.00026532,7]
[422065162,1778543432000,-289.23,0.00026388,2]
[422065163,1778543432000,-1249.42,0.00026394,2]
[422065166,1778543432000,-150.97,0.00026619,2]
[422065159,1778543432000,-506.0,0.00026251,3]
[422065165,1778543432000,-5000.0,0.00026575,2]
[422065160,1778543432000,-437.5,0.00026296,2]
[422065167,1778543432000,-150.97,0.00026619,7]
[422065168,1778543432000,-150.97,0.00026619,2]
[422065169,1778543432000,-150.97,0.00026619,2]
[422065170,1778543432000,-150.97,0.00026619,7]
[422065109,1778543432000,-173.0,0.00024,2]
[422065157,1778543432000,-152.0,0.00026138,7]
[422065138,1778543432000,-289.23,0.0002509,2]
[422065113,1778543432000,-182.0,0.00024,2]
[422065140,1778543432000,-331.45,0.00025277,2]
[422065118,1778543432000,-506.0,0.00024397,2]
[422065142,1778543432000,-289.23,0.00025378,7]
[422065110,1778543432000,-360.0,0.00024,2]
[422065115,1778543432000,-404.23,0.00024174,2]
[422065111,1778543432000,-902.0,0.00024,2]
[422065121,1778543432000,-165.25,0.00024658,2]
[422065112,1778543432000,-309.0,0.00024,2]
[422065117,1778543432000,-437.5,0.00024324,2]
[422065120,1778543432000,-506.0,0.00024397,2]
[422065119,1778543432000,-506.0,0.00024397,2]
[422065116,1778543432000,-217.17776526,0.000242,2]
[422065122,1778543432000,-184.3,0.00024658,2]
[422065133,1778543432000,-2577.48,0.0002498,2]
[422065134,1778543432000,-2060.25,0.0002498,2]
[422065114,1778543432000,-315.45,0.00024174,2]
[422065126,1778543432000,-184.38,0.00024658,2]
[422065127,1778543432000,-152.94,0.0002476,2]
[422065139,1778543432000,-289.23,0.00025234,7]
[422065137,1778543432000,-315.0,0.00025,2]
[422065136,1778543432000,-916.0,0.00025,2]
[422065135,1778543432000,-362.0,0.00025,2]
[422065129,1778543432000,-289.23,0.00024802,7]
[422065141,1778543432000,-166.66,0.00025295,30]
[422065131,1778543432000,-289.23,0.00024946,2]
[422065124,1778543432000,-183.82,0.00024658,2]
[422065130,1778543432000,-1118.18,0.00024813,2]
[422065128,1778543432000,-166.66,0.00024774,30]
[422065123,1778543432000,-289.23,0.00024658,2]
[422065132,1778543432000,-3478.96,0.0002498,2]
[422065125,1778543432000,-215.13,0.00024658,2]
[422065207,1778543433000,-506.0,0.00028104,5]
[422065209,1778543433000,-437.5,0.00028267,2]
[422065211,1778543433000,-7895.59,0.00028427,30]
[422065213,1778543433000,-1047.11,0.000288,2]
[422065204,1778543433000,-500.0,0.000278,7]
[422065203,1778543433000,-152.94,0.0002766,2]
[422065201,1778543433000,-719.96,0.00027397,10]
[422065198,1778543433000,-166.66,0.00027382,30]
[422065205,1778543433000,-500.0,0.00028024,15]
[422065200,1778543433000,-863.95,0.00027397,10]
[422065206,1778543433000,-331.45,0.00028086,2]
[422065212,1778543433000,-152.94,0.00028626,2]
[422065219,1778543433000,-1047.11,0.000292,2]
[422065210,1778543433000,-165.25,0.0002831,2]
[422065214,1778543433000,-1000.0,0.0002901,2]
[422065216,1778543433000,-200.0,0.0002901,2]
[422065218,1778543433000,-314.615,0.0002901,2]
[422065217,1778543433000,-150.0,0.0002901,2]
[422065215,1778543433000,-178.419,0.0002901,2]
[422065221,1778543433000,-152.94,0.00029593,2]
[422065224,1778543433000,-3482.68,0.00029695,60]
[422065222,1778543433000,-1047.11,0.000296,2]
[422065220,1778543433000,-175.8,0.00029518,120]
[422065199,1778543433000,-1500.0,0.00027397,2]
[422065208,1778543433000,-150.0,0.00028192,2]
[422065202,1778543433000,-599.97,0.00027397,10]
[422065189,1778543433000,-192.82,0.00026671,7]
[422065196,1778543433000,-187.04,0.00027073,2]
[422065178,1778543433000,-150.97,0.00026619,2]
[422065173,1778543433000,-150.97,0.00026619,7]
[422065183,1778543433000,-150.97,0.00026619,7]
[422065190,1778543433000,-192.82,0.00026671,2]
[422065176,1778543433000,-150.97,0.00026619,7]
[422065185,1778543433000,-245.83,0.00026626,2]
[422065171,1778543433000,-150.97,0.00026619,7]
[422065172,1778543433000,-150.97,0.00026619,2]
[422065184,1778543433000,-151.02,0.00026619,2]
[422065182,1778543433000,-150.97,0.00026619,7]
[422065181,1778543433000,-150.97,0.00026619,2]
[422065223,1778543433000,-150.0,0.00029601,2]
[422065188,1778543433000,-192.82,0.00026671,7]
[422065191,1778543433000,-192.88,0.00026671,7]
[422065179,1778543433000,-150.97,0.00026619,7]
[422065180,1778543433000,-150.97,0.00026619,2]
[422065186,1778543433000,-192.82,0.00026671,2]
[422065175,1778543433000,-150.97,0.00026619,2]
[422065187,1778543433000,-192.82,0.00026671,2]
[422065174,1778543433000,-150.97,0.00026619,2]
[422065177,1778543433000,-150.97,0.00026619,7]
[422065192,1778543433000,-245.08,0.00026677,2]
[422065194,1778543433000,-150.0,0.00026849,2]
[422065193,1778543433000,-152.94,0.00026693,2]
[422065195,1778543433000,-166.66,0.0002686,30]
[422065197,1778543433000,-11913.29,0.000271,30]
[422065226,1778543433000,-506.0,0.00029958,7]
[422065225,1778543433000,-164.2,0.00029862,2]
[422065228,1778543433000,-1047.11,0.0003,30]
[422065259,1778543433000,-902.0,0.00031551,30]
[422065258,1778543433000,-360.0,0.00031551,30]
[422065257,1778543433000,-160.0,0.00031551,30]
[422065261,1778543433000,-154.0,0.00031551,30]
[422065263,1778543433000,-182.0,0.00031553,30]
[422065262,1778543433000,-309.0,0.00031553,30]
[422065264,1778543433000,-182.0,0.00031553,30]
[422065265,1778543433000,-160.0,0.00031553,30]
[422065271,1778543433000,-437.5,0.0003221,5]
[422065266,1778543433000,-506.0,0.00031811,9]
[422065269,1778543433000,-200.0,0.00032055,2]
[422065267,1778543433000,-165.25,0.00031963,2]
[422065255,1778543433000,-1000.0,0.000315,7]
[422065268,1778543433000,-1000.0,0.00032,7]
[422065272,1778543433000,-152.0,0.00032551,30]
[422065275,1778543433000,-902.0,0.00032551,30]
[422065273,1778543433000,-160.0,0.00032551,30]
[422065227,1778543433000,-1000.0,0.0003,7]
[422065279,1778543433000,-182.0,0.00032553,30]
[422065281,1778543433000,-360.0,0.0003257,30]
[422065276,1778543433000,-157.0,0.00032551,30]
[422065277,1778543433000,-154.0,0.00032551,30]
[422065274,1778543433000,-360.0,0.00032551,30]
[422065278,1778543433000,-309.0,0.00032553,30]
[422065282,1778543433000,-150.0,0.00032636,2]
[422065283,1778543433000,-158.59,0.00032877,60]
[422065270,1778543433000,-239.0,0.00032083,5]
[422065260,1778543433000,-157.0,0.00031551,30]
[422065280,1778543433000,-182.0,0.00032553,30]
[422065254,1778543433000,-161.91,0.0003147,2]
[422065253,1778543433000,-2797.52572278,0.0003137,2]
[422065229,1778543433000,-200.0,0.00030137,2]
[422065231,1778543433000,-1047.11,0.000304,30]
[422065238,1778543433000,-309.0,0.00030553,30]
[422065232,1778543433000,-152.0,0.00030551,30]
[422065235,1778543433000,-902.0,0.00030551,30]
[422065233,1778543433000,-160.0,0.00030551,30]
[422065234,1778543433000,-360.0,0.00030551,30]
[422065236,1778543433000,-157.0,0.00030551,30]
[422065237,1778543433000,-154.0,0.00030551,30]
[422065239,1778543433000,-182.0,0.00030553,30]
[422065240,1778543433000,-182.0,0.00030553,30]
[422065230,1778543433000,-437.5,0.00030239,2]
[422065245,1778543433000,-1047.11,0.000308,30]
[422065244,1778543433000,-179.41746036,0.000307,2]
[422065252,1778543433000,-1047.11,0.000312,30]
[422065251,1778543433000,-152.0,0.00031108,7]
[422065256,1778543433000,-152.0,0.00031551,30]
[422065249,1778543433000,-208.63,0.00031096,2]
[422065250,1778543433000,-200.0,0.00031096,2]
[422065246,1778543433000,-331.45,0.00030894,2]
[422065243,1778543433000,-179.41746036,0.000307,2]
[422065248,1778543433000,-286.26,0.00031096,2]
[422065242,1778543433000,-179.41746038,0.000307,2]
[422065247,1778543433000,-150.0,0.00031081,2]
[422065241,1778543433000,-154.0,0.00030553,30]
[422065307,1778543434000,-152.0,0.00034551,30]
[422065317,1778543434000,-1480.0,0.00035,7]
[422065308,1778543434000,-160.0,0.00034551,30]
[422065309,1778543434000,-360.0,0.00034551,30]
[422065310,1778543434000,-902.0,0.00034551,30]
[422065311,1778543434000,-157.0,0.00034551,30]
[422065306,1778543434000,-1734.62772924,0.00034522,30]
[422065314,1778543434000,-182.0,0.00034553,30]
[422065320,1778543434000,-506.0,0.00035518,13]
[422065312,1778543434000,-154.0,0.00034551,30]
[422065313,1778543434000,-309.0,0.00034553,30]
[422065316,1778543434000,-350.0,0.00034931,5]
[422065318,1778543434000,-261.71063059,0.000352,7]
[422065319,1778543434000,-1238.28936941,0.000352,7]
[422065332,1778543434000,-152.0,0.00035606,3]
[422065322,1778543434000,-164.0,0.00035526,11]
[422065301,1778543434000,-632.39,0.00033703,36]
[422065315,1778543434000,-182.0,0.00034553,30]
[422065302,1778543434000,-350.0,0.00033973,5]
[422065286,1778543434000,-350.0,0.00033014,5]
[422065303,1778543434000,-1000.0,0.00034,7]
[422065325,1778543434000,-360.0,0.00035551,30]
[422065293,1778543434000,-902.0,0.00033551,30]
[422065284,1778543434000,-250.0,0.00032894,7]
[422065285,1778543434000,-1000.0,0.00033,7]
[422065294,1778543434000,-157.0,0.00033551,30]
[422065288,1778543434000,-150.0,0.00033189,7]
[422065287,1778543434000,-150.0,0.00033189,7]
[422065289,1778543434000,-150.0,0.00033189,7]
[422065291,1778543434000,-160.0,0.00033551,30]
[422065290,1778543434000,-152.0,0.00033551,30]
[422065292,1778543434000,-360.0,0.00033551,30]
[422065297,1778543434000,-182.0,0.00033553,30]
[422065295,1778543434000,-154.0,0.00033551,30]
[422065298,1778543434000,-182.0,0.00033553,30]
[422065296,1778543434000,-309.0,0.00033553,30]
[422065304,1778543434000,-437.5,0.00034182,7]
[422065305,1778543434000,-392.3840652,0.00034507,30]
[422065300,1778543434000,-331.45,0.00033703,2]
[422065321,1778543434000,-1672.7364795,0.00035523,30]
[422065299,1778543434000,-506.0,0.00033664,11]
[422065327,1778543434000,-157.0,0.00035551,30]
[422065355,1778543434000,-400.0,0.000367,13]
[422065348,1778543434000,-182.0,0.00036553,30]
[422065349,1778543434000,-900.0,0.000366,13]
[422065353,1778543434000,-10437.54548024,0.000367,2]
[422065352,1778543434000,-1800.0,0.000367,13]
[422065351,1778543434000,-200.0,0.000366,13]
[422065354,1778543434000,-900.0,0.000367,13]
[422065356,1778543434000,-69617.57153876,0.00036777,2]
[422065365,1778543434000,-238.35298306,0.00036882,2]
[422065363,1778543434000,-31436.51329671,0.000368,2]
[422065359,1778543434000,-2700.0,0.000368,13]
[422065361,1778543434000,-167.12971911,0.000368,11]
[422065357,1778543434000,-28764.5274295,0.00036777,2]
[422065362,1778543434000,-700.0,0.000368,13]
[422065360,1778543434000,-1400.0,0.000368,13]
[422065364,1778543434000,-156.55097174,0.00036807,2]
[422065366,1778543434000,-151.0,0.00036889,14]
[422065329,1778543434000,-309.0,0.00035553,30]
[422065358,1778543434000,-616.79803174,0.00036777,2]
[422065347,1778543434000,-182.0,0.00036553,30]
[422065350,1778543434000,-400.0,0.000366,13]